Cogmind - Beta 10.2 @@@ ROGUE MODE // 2020.11.23 @ 14:23:15 // Halloween2020/ForbiddenLore Player: TpFive3.5 Result: Destroyed by as-85533 with Assembled Focal Cannon Performance ------------- Evolutions (1) 500 Regions Visited (5) 1000 Robots Destroyed (26) 130 Value Destroyed (734) 734 Prototype IDs (7) 140 Alien Tech Used (0) 0 Bonus (939) 939 TOTAL SCORE: 3443 Bonus ------- Follower Combat Kills 259 Destroyed Z-Imprinter 1000 Friendly Fire -320 Cogmind --------- Core Integrity 0/400 Matter 280/300 Energy 61/100 System Corruption 0% Temperature Cool (180) Movement Walking (110) Location -7/Deep Caves Parts ------- > --- POWER (1) -------- Zionite Light DM Reactor > --- PROPULSION (2) --- Zionite Composite Leg I Zionite Composite Leg I > --- UTILITY (2) ------ Medium Storage Unit Medium Storage Unit > --- WEAPON (4) ------- (None) > --- INVENTORY (12) --- Experimental Heat Sink Experimental Heat Sink Sensor Array Improved Signal Interpreter Improved Targeting Computer Ripper CR-A16's Pointy Stick Peak State ------------ > --- POWER ------------ Zionite Light DM Reactor > --- PROPULSION ------- Zionite Composite Leg I Zionite Composite Leg I > --- UTILITY ---------- Medium Storage Unit Medium Storage Unit > --- WEAPON ----------- Zionite Laser-S Zionite Laser-S Zionite Phaser-S Zionite Phaser-S > --- INVENTORY -------- Zionite Light DM Reactor Zionite Composite Leg I Experimental Heat Sink Experimental Heat Sink Sensor Array Improved Signal Interpreter Improved Targeting Computer Zionite Laser-S Zionite Phaser-S Zionite Phaser-S Ripper CR-A16's Pointy Stick [Rating: 54] Favorites ----------- Power Ion Engine Engine Ion Engine Power Core Light Nuclear Core Reactor Zionite Light DM Reactor Propulsion Aluminum Leg Leg Aluminum Leg Utility Medium Storage Unit Storage Medium Storage Unit Weapon Small Laser Energy Gun Small Laser Ballistic Gun Heavy Assault Rifle Launcher Grenade Launcher Slashing Weapon Ripper Piercing Weapon CR-A16's Pointy Stick Build | -11 -10 -9 -9 -7 -7 ------- Run | Scr Mat Mat Min Zio Dee Slots Evolved 2 | . . 2 . . . Power . | . . . . . . Propulsion . | . . . . . . Utility . | . . . . . . Weapon 2 | . . 2 . . . Parts Attached 53 | 7 11 4 1 2 28 Power 7 | 1 2 . . . 4 Engine 4 | 1 2 . . . 1 Core 1 | . . . . . 1 Reactor 2 | . . . . . 2 Propulsion 10 | 2 2 1 . . 5 Treads . | . . . . . . Leg 10 | 2 2 1 . . 5 Wheel . | . . . . . . Hover . | . . . . . . Flight . | . . . . . . Utility 7 | 2 2 . . . 3 Device . | . . . . . . Storage 7 | 2 2 . . . 3 Processor . | . . . . . . Hackware . | . . . . . . Protection . | . . . . . . Artifact . | . . . . . . Weapon 29 | 2 5 3 1 2 16 Energy Gun 15 | 1 4 1 . . 9 Energy Cannon . | . . . . . . Ballistic Gun 7 | 1 1 . 1 1 3 Ballistic Cannon . | . . . . . . Launcher 4 | . . 2 . . 2 Special Weapon . | . . . . . . Impact Weapon . | . . . . . . Slashing Weapon 1 | . . . . . 1 Piercing Weapon 2 | . . . . 1 1 Special Melee Weapon . | . . . . . . Unidentified Prototypes 5 | . . . . . 5 Parts Lost 28 | . 6 2 . . 20 Power 3 | . 1 . . . 2 Propulsion 6 | . 2 1 . . 3 Utility . | . . . . . . Weapon 19 | . 3 1 . . 15 Highest Loss Streak 6 | . 6 2 . . 6 Average Slot Usage (%) 98 | . 96 99 100 100 96 Engine 9 | . 13 11 11 11 6 Reactor 1 | . . . . . 3 Leg 22 | . 26 22 22 22 21 Storage 22 | . 28 22 22 22 22 Energy Gun 25 | . 17 33 33 33 14 Ballistic Gun 10 | . 9 . 8 11 15 Launcher 3 | . . 10 2 . 4 Piercing Weapon 1 | . . . . . 3 Naked Turns . | . . . . . . Heaviest Build 45 | 15 25 29 29 29 45 Greatest Support 48 | 20 20 20 20 20 48 Greatest Overweight (x) 2 | . 1 1 1 1 2 Average Overweight (x) . | . . 1 1 1 . Largest Inventory Capacity 12 | 8 12 12 12 12 12 Average Capacity 11 | 6 9 12 12 12 11 Most Carried 12 | 5 8 12 12 12 12 Average Carried 10 | 3 6 8 12 11 10 Final Capacity 12 | 8 12 12 12 12 12 Final Carried 12 | 5 8 12 12 12 7 Class Distribution -------------------- 49% | Scavenger-Gunner 34% | Scavenger-Mutant 8% | Gunner 7% | Mutant Dominant Class ---------------- Scavenger-Mutant | -10/Materials Scavenger-Mutant | -9/Materials Scavenger-Gunner | -9/Mines Scavenger-Gunner | -7/Zion Scavenger-Mutant | -7/Deep Caves Resources | -11 -10 -9 -9 -7 -7 ----------- Run | Scr Mat Mat Min Zio Dee Matter Collected 907 | 268 108 122 15 58 336 Remotely . | . . . . . . Salvage Created 973 | 100 414 249 . . 210 Parts 49 | 3 17 20 . . 9 Haulers Intercepted 1 | . . 1 . . . Recyclers Shooed . | . . . . . . Parts Field Recycled . | . . . . . . Retrieved Matter . | . . . . . . Parts Self-Destructed . | . . . . . . Prevented . | . . . . . . Kills | -11 -10 -9 -9 -7 -7 ------- Run | Scr Mat Mat Min Zio Dee Combat Hostiles Destroyed 20 | . 7 9 . . 4 Guns 10 | . 7 1 . . 2 AOE 10 | . . 8 . . 2 Classes Destroyed 9 | 1 1 6 . . 1 Worker 1 | . . 1 . . . Hauler 1 | . . 1 . . . Recycler 2 | 1 1 . . . . Operator 1 | . . 1 . . . Watcher 1 | . . 1 . . . Swarmer 4 | . . 4 . . . Grunt 10 | . 7 3 . . . Sentry 2 | . . 2 . . . Z-Light 3 | . . . . . 3 Best Kill Streak 8 | 1 8 4 . . 2 Combat Bots Only 7 | . 7 4 . . 2 Max Kills in Single Turn 2 | 1 1 2 . . 1 Gunslinging . | . . . . . . Exploded 2 | . . 2 . . 1 Melee . | . . . . . . Uniques/NPCs Destroyed 1 | . . . . . 1 Z-Imprinter (-7/Deep Caves) Combat | -11 -10 -9 -9 -7 -7 -------- Run | Scr Mat Mat Min Zio Dee Damage Taken 2758 | . 626 310 . . 1822 Core 519 | . 108 39 . . 372 Absorbed by Shields . | . . . . . . Core Remaining (%) 78 | 100 56 . . . . Volleys Fired 72 | 5 27 29 . . 11 Largest 3 | 1 2 3 . . 3 Hottest 180 | 40 80 145 . . 180 Shots Fired 131 | 5 47 57 . . 22 Gun 108 | 5 47 42 . . 14 Cannon . | . . . . . . Launcher 23 | . . 15 . . 8 Special . | . . . . . . Kinetic 13 | . 11 . . . 2 Thermal 53 | . 9 42 . . 2 Explosive 23 | . . 15 . . 8 Electromagnetic 32 | 5 27 . . . . Phasic 10 | . . . . . 10 Robot Hit Streak 10 | 4 8 10 . . 4 Robot Miss Streak 4 | 1 4 3 . . 4 Penetration Max . | . . . . . . Secondary Targets 3 | . 2 . . . 1 Max Gunslinging Chain 1 | . 1 . . . 1 Shots Hit Robots 78 | 4 29 37 . . 8 Core Hits 71 | 3 18 21 . . 29 Critical Hits . | . . . . . . Critical Kills . | . . . . . . Critical Parts Destroyed . | . . . . . . Melee Attacks . | . . . . . . Impact . | . . . . . . Slashing . | . . . . . . Piercing . | . . . . . . Sneak Attacks . | . . . . . . Combat Hostiles . | . . . . . . Follow-up Attacks . | . . . . . . Damage Inflicted 2613 | 75 370 916 . . 1252 Guns 1032 | 68 370 318 . . 276 Cannons . | . . . . . . Explosions 1569 | . . 593 . . 976 Melee . | . . . . . . Ramming 12 | 7 . 5 . . . Kinetic 92 | . 74 . . . 18 Thermal 419 | . 74 318 . . 27 Explosive 1569 | . . 593 . . 976 Electromagnetic 290 | 68 222 . . . . Impact . | . . . . . . Slashing . | . . . . . . Piercing . | . . . . . . Phasic 231 | . . . . . 231 Highest Corruption 2 | . 2 . . . . Average Corruption 2 | . 2 . . . . Corruption Purged . | . . . . . . Overload Shots . | . . . . . . Overflow Damage 97 | . . 7 . . 90 Projectiles . | . . . . . . Explosions 97 | . . 7 . . 90 Melee . | . . . . . . Knockbacks . | . . . . . . Impact . | . . . . . . Kinetic . | . . . . . . Secondary . | . . . . . . Self-Inflicted Damage 71 | . . 20 . . 51 Shots 3 | . . 1 . . 2 Rammed 2 | 1 . 1 . . . Targets Rammed 3 | 2 . 1 . . . Kicked 1 | 1 . . . . . Crushed . | . . . . . . Highest Temperature 383 | . 297 383 . . 361 Average Temperature 136 | . 168 112 . . 130 Received Heat Transfer 834 | . 342 87 . . 405 Effects 6 | . 1 4 . . 1 Shutdowns 1 | . . 1 . . . Energy Bleed 1 | . 1 . . . . Interference 3 | . . 3 . . . Matter Decay 1 | . . . . . 1 Siege Activations . | . . . . . . Robots Corrupted . | . . . . . . Combat Hostiles . | . . . . . . Parts Fried . | . . . . . . Impact Corruptions . | . . . . . . Robots Melted . | . . . . . . Combat Hostiles . | . . . . . . Parts Melted . | . . . . . . Heat Transferred 996 | . 175 747 . . 74 Parts Sabotaged . | . . . . . . Parts Stolen . | . . . . . . Parts Stripped . | . . . . . . Power Chain Reactions . | . . . . . . Missiles Intercepted . | . . . . . . Alert | -11 -10 -9 -9 -7 -7 ------- Run | Scr Mat Mat Min Zio Dee Peak Influence 294 | 5 177 294 60 . . Initial 60 | . 3 . 60 . . Average 95 | 2 101 119 60 . . Maximum Alert Level 1 | . . 1 . . . Low Security (%) 98 | 100 100 95 100 . . Level 1 1 | . . 4 . . . Level 2 . | . . . . . . Level 3 . | . . . . . . Level 4 . | . . . . . . Level 5 . | . . . . . . High Security . | . . . . . . Max Security . | . . . . . . Squads Dispatched 5 | . 2 3 . . . Investigation . | . . . . . . Extermination . | . . . . . . Reinforcement 5 | . 2 3 . . . Assault . | . . . . . . Garrison . | . . . . . . Intercept . | . . . . . . Construction Impeded . | . . . . . . Haulers Reinforced . | . . . . . . Stealth | -11 -10 -9 -9 -7 -7 --------- Run | Scr Mat Mat Min Zio Dee Distress Signals 4 | . 4 . . . . Communications Jammed . | . . . . . . Distress Signals . | . . . . . . Times Spotted 48 | . 18 14 . . 16 Peak Tracking Total 7 | . 7 6 . . 6 Tactical Retreats . | . . . . . . Traps | -11 -10 -9 -9 -7 -7 ------- Run | Scr Mat Mat Min Zio Dee Traps Triggered 2 | . 2 . . . . Indirectly . | . . . . . . Trap Hack Attempts . | . . . . . . Triggered . | . . . . . . Disarmed . | . . . . . . Reprogrammed . | . . . . . . Reused . | . . . . . . Traps Extracted . | . . . . . . Installed . | . . . . . . Triggered . | . . . . . . Machines | -11 -10 -9 -9 -7 -7 ---------- Run | Scr Mat Mat Min Zio Dee Machines Disabled 4 | . . 4 . . . Max in Single Turn 1 | . . 1 . . . Machines Sabotaged . | . . . . . . Garrisons Compromised . | . . . . . . Overloaded Fab Kills . | . . . . . . Fab Network Shutdowns . | . . . . . . Hacking | -11 -10 -9 -9 -7 -7 --------- Run | Scr Mat Mat Min Zio Dee Machines Accessed 4 | . 4 . . . . Terminals 4 | . 4 . . . . Fabricators . | . . . . . . Repair Stations . | . . . . . . Recycling Units . | . . . . . . Scanalyzers . | . . . . . . Garrison Access . | . . . . . . Total Hacks 12 | . 12 . . . . Successful 7 | . 7 . . . . Failed 5 | . 5 . . . . Catastrophic . | . . . . . . Database Lockouts . | . . . . . . Manual 18 | . 3 . . 15 . Terminals 12 | . 12 . . . . Fabricators . | . . . . . . Repair Stations . | . . . . . . Recycling Units . | . . . . . . Scanalyzers . | . . . . . . Garrison Access . | . . . . . . Terminal Hacks 7 | . 7 . . . . Record 1 | . 1 . . . . Prototype ID Bank 1 | . 1 . . . . Alert Level 1 | . 1 . . . . Locate Traps 1 | . 1 . . . . Dispatch Records 1 | . 1 . . . . Transport Status 1 | . 1 . . . . Zone Layout 1 | . 1 . . . . Fabricator Hacks . | . . . . . . Repair Station Hacks . | . . . . . . Recycling Unit Hacks . | . . . . . . Scanalyzer . | . . . . . . Garrison Access Hacks . | . . . . . . Unauthorized Hacks . | . . . . . . Terminals . | . . . . . . Fabricators . | . . . . . . Repair Stations . | . . . . . . Recycling Units . | . . . . . . Scanalyzers . | . . . . . . Garrison Access . | . . . . . . Data Cores Recovered . | . . . . . . Used . | . . . . . . Hacking Detections 3 | . 3 . . . . Full Trace Events 1 | . 1 . . . . Feedback Events . | . . . . . . Feedback Blocked . | . . . . . . Robot Schematics Acquired . | . . . . . . Robots Built . | . . . . . . Matter . | . . . . . . Time . | . . . . . . Total Robot Build Rating . | . . . . . . Part Schematics Acquired . | . . . . . . Parts Built . | . . . . . . Matter . | . . . . . . Time . | . . . . . . Total Part Build Rating . | . . . . . . Parts Repaired . | . . . . . . Time . | . . . . . . Parts Recycled . | . . . . . . Recycled Matter . | . . . . . . Retrieved Matter . | . . . . . . Retrieved Components . | . . . . . . Parts Scanalyzed . | . . . . . . Part Schematics Acquired . | . . . . . . Parts Damaged . | . . . . . . Bothacking | -11 -10 -9 -9 -7 -7 ------------ Run | Scr Mat Mat Min Zio Dee Used RIF Installer . | . . . . . . Robots Hacked . | . . . . . . Non-combat . | . . . . . . Combat . | . . . . . . Robot Hacks Applied . | . . . . . . Relay Couplers Released . | . . . . . . Robots Rewired . | . . . . . . Allies Hacked . | . . . . . . Hacks Repelled . | . . . . . . Allies | -11 -10 -9 -9 -7 -7 -------- Run | Scr Mat Mat Min Zio Dee Total Allies 9 | . . . . 8 1 Largest Group 8 | . . . . 8 8 Highest-Rated Group 358 | . . . . 358 358 Highest-Rated Ally 94 | . . . . 94 94 Total Orders . | . . . . . . Ally Attacks 86 | . . . . . 86 Total Damage 2136 | . . . . . 2136 Kills 18 | . . . . . 18 Allies Corrupted . | . . . . . . Allies Melted . | . . . . . . Intel | -11 -10 -9 -9 -7 -7 ------- Run | Scr Mat Mat Min Zio Dee Robot Analysis Total . | . . . . . . Derelict Logs Recovered 3 | . . . . 3 . Drone Launches . | . . . . . . Drone Recoveries . | . . . . . . Exploration | -11 -10 -9 -9 -7 -7 ------------- Run | Scr Mat Mat Min Zio Dee Turns Passed 3404 | 106 481 515 137 1211 954 Spaces Moved 2160 | 69 299 277 91 794 630 Core 5 | 5 . . . . . Treads . | . . . . . . Legs 2155 | 64 299 277 91 794 630 Wheels . | . . . . . . Hover . | . . . . . . Flight . | . . . . . . Fastest Speed 50 | 50 120 150 150 150 110 Average Speed 141 | 114 128 150 150 150 136 Slowest Speed 180 | 120 150 150 150 150 180 Overloaded Moves . | . . . . . . Propulsion Burnouts . | . . . . . . Robots Hopped . | . . . . . . Cave-ins Triggered . | . . . . . . Exploration Rate (%) 43 | 4 56 26 19 85 70 Regions Visited 5 Branch Regions 3 Pre-discovered Areas 4 | . . . 1 3 . Known Exits Taken . | . . . . . . Unknown Exits Taken 5 | 1 1 1 1 1 . Scrap Searched 5 | . . . 1 4 . Spaces Dug . | . . . . . . Terrain Destroyed 121 | . . 75 . . 46 Melee . | . . . . . . Projectile 3 | . . . . . 3 AOE 118 | . . 75 . . 43 Terrain Rammed . | . . . . . . Walls Destroyed . | . . . . . . Machines Disabled . | . . . . . . Actions | -11 -10 -9 -9 -7 -7 --------- Run | Scr Mat Mat Min Zio Dee Total 2375 | 87 346 330 91 815 706 Wait 34 | . . 10 . 13 11 Move 2156 | 69 298 276 90 793 630 Hop . | . . . . . . Pick Up 37 | 5 8 9 . 3 12 Fast Attach 22 | 7 2 . . . 13 Attach 18 | . 5 4 . . 9 Detach 1 | . . . . . 1 Swap 13 | . 4 . 1 2 6 Drop 20 | . 2 1 . 4 13 Fire 72 | 5 27 29 . . 11 Melee . | . . . . . . Ram . | . . . . . . Kick 2 | 1 . 1 . . . Crush . | . . . . . . Escape Stasis . | . . . . . . Rewire . | . . . . . . Trap . | . . . . . . Miscellaneous . | . . . . . . Route ------- -11/Scrapyard -10/Materials (discovered 3 exits: [*Mat x2] / [*Min]) -9/Materials -9/Mines -7/Zion (discovered 2 exits: [*Dee] / [*Pro]) -7/Deep Caves History --------- Turn | Location | Event 5 | -11/Scrapyard | Discovered new exit (range 15) 107 | -11/Scrapyard | Entered Materials 246 | -10/Materials | Destroyed 7 combat bots 255 | -10/Materials | Lost 6 parts (1p2n3w) 308 | -10/Materials | Discovered new exit (range 15) 329 | -10/Materials | Discovered new exit (range 20) 530 | -10/Materials | Build established: Scavenger-Mutant 577 | -10/Materials | Discovered new exit (range 5) 588 | -10/Materials | Entered another Materials area 588 | -9/Materials | Evolved 2 slots: Weapon x2 1065 | -9/Materials | Discovered new exit (range 16) 1103 | -9/Materials | Entered Mines 1155 | -9/Mines | Learned location of Storage (-8) 1224 | -9/Mines | A Derelict revealed a hidden shortcut to a safe place 1240 | -9/Mines | Entered Zion 1263 | -7/Zion | Gained Derelict followers 1346 | -7/Zion | Build established: Scavenger-Gunner 1368 | -7/Zion | Discovered new exit (range 15) 1426 | -7/Zion | Given A8's code to call for help 1500 | -7/Zion | Learned location of Quarantine (-3) 1516 | -7/Zion | Learned location of Data Miner (-6) 1543 | -7/Zion | Acquired unknown access codes intercepted by a Zionite 1597 | -7/Zion | Learned location of Warlord (-4) 1660 | -7/Zion | Found Prototype Device 1866 | -7/Zion | Found CR-A16's Pointy Stick 1901 | -7/Zion | Learned Factory stockpile data 2052 | -7/Zion | Learned Factory trap positions 2088 | -7/Zion | Gained Derelict followers 2351 | -7/Zion | Received a hallucinogenic algorithm 2355 | -7/Zion | Enhanced Grunt warped into view, answering call for help 2355 | -7/Zion | Enhanced Grunt warped into view, answering call for help 2406 | -7/Zion | Opened final containment barrier to the Deep Caves 2430 | -7/Zion | Discovered new exit (range 3) 2430 | -7/Zion | Saw the warning signs outside the Deep Caves entrance 2451 | -7/Zion | Entered Deep Caves 2451 | -7/Deep Caves | Accompanied by 8 allies 2515 | -7/Deep Caves | Lost 3 parts (3w) 2787 | -7/Deep Caves | Attacked by Z-Imprinter 2795 | -7/Deep Caves | Destroyed Z-Imprinter 2802 | -7/Deep Caves | Build established: Scavenger-Mutant 2976 | -7/Deep Caves | Z-Facility disabled 3015 | -7/Deep Caves | Lost 6 parts (1p2n3w) 3331 | -7/Deep Caves | Spotted as-85533 3333 | -7/Deep Caves | Core integrity fell below 50% 3349 | -7/Deep Caves | Core integrity fell below 20% 3379 | -7/Deep Caves | Lost 5 parts (1p1n3w) 3405 | -7/Deep Caves | Destroyed by as-85533 with Assembled Focal Cannon Last Messages --------------- 03184_ 6P-TWJ(z) destroyed. 03184_ Switching to secondary target: 5T-RQZ(z). 03185_ 5T-RQZ(z) destroyed. 03196_ Overheating: Matter decay (-55). 03196_ Dropped Lgt. Nuclear Core. 03196_ Acquired Zio. Light DM Reactor. 03199_ Acquired Prototype Energy Gun. 03199_ Identified Zio. Laser-S. 03202_ Acquired 64 matter. 03204_ Acquired Zio. Laser-S. 03209_ Acquired 21 matter. 03333_ as-85533: "DSI9AT1D G8OHIBQ29FWG 26R186 QD12WHW8W33 TDK1 81FTS" 03338_ Enhanced Grunt destroyed. 03345_ Zio. Laser-S destroyed. 03345_ Zio. Light DM Reactor destroyed. 03348_ Zio. Phaser-S destroyed. 03348_ Zio. Composite Leg I destroyed. 03402_ Zio. Phaser-S destroyed. 03402_ Zio. Laser-S destroyed. 03405_ Zio. Phaser-S destroyed. Map ----- +----------------------------------------------------+ | ?????????????????????????????????????????????????? | | ?????????????????????????????????????????????????? | | ?????????????????????????????????????????????????? | | ?????????????????????????????????????????????????? | | ?????????????????????????????????????????????????? | | ?????????????????????????????????????????????????? | | ?????????????????????????????????????????????????? | | ?????????????????????????????????????????????????? | | ?????????????????????????????????????????????????? | | ?????????????????????????????????????????????????? | | ?????????????????????????????????????????????????? | | ?????????????????????????????????????????????????? | | ?????????????????????????????????????????????????? | | ?????????????????????????????????????????????????? | | ??????????# ?????????????????????????????????????? | | ??????????# #????????????????????????????????????? | | ??????????# #???????????????????????????????????? | | ??????????# ???????????????????????????# ??????? | | ??????????# ???????????????????????#?## ?????? | | ?????????## ????????????????????? ## ?????? | | ?????????# #??????????####?????? ??????? | | ?????????# ##??####### ##?????# #??????? | | ?????????# #### #;# #?####?# #??????? | | ??????????# ## G ### ##?# ##?????? | | ????? ?????# ### #?# #?????? | | ? #???## #;@ ;## ### ##????? | | #??# ####### ###?## | | #??# ####### ## | | #??## ###### | | #???## ##???# | | #????## #????# | | #????## ##??## # | | #???## #### ## # | | ##?## ### # | | ### ##?# | | ## ## ######??## | | * ## ## #########?######## | | ## ########????????## ## | | ##??????????????# #### | | *% ###????????????# ##??## | | *!% #?????????# #####???## | | != "# #???????# ########## # | | ## ## #??????####### ## # | | ### ##?# ##???????????# # | | # # #?###???# ###????????????# | | ## ## ##????????# ##??????????????## | | ?# ?###??????????###????????????????## # | | ?# ??????????????????????????????????############# | | ??#??????????????????????????????????????????????? | | | +----------------------------------------------------+ Best States ------------- Heat Dissipation 28 Energy Generation 27 Energy Capacity 1150 Matter Stores 300 Matter Capacity 300 Sight Range 16 Terrain Scan Density 10 Evasion (%) 40 Item Schematics ----------------- None Robot Schematics ------------------ None Fabricated ------------ Nothing Alien Tech Used ----------------- None Achievements -------------- None Challenges ------------ None Game ------ Seed HeartHackingStorm Manual? 0 Play Time 00:54:03 Cumulative 12.8 hours Start 2020.11.23 @ 13:22:07 End 2020.11.23 @ 14:23:15 Sessions 1 Manual Loads 0 Difficulty Rogue Special Mode Halloween2020/ForbiddenLore Game No. 11 Rogue 11 Adventurer 0 Explorer 0 Win Type - Total 0 Types 0/0/0/0/0/0/0/0/0 Lore% 15 Gallery% 16 Achievement% 12 Wizard Run 0 Options --------- ASCII 0 Keyboard 0 Movement Mouse Keybinds 0 Fullscreen 1 Font 18/SmallcapsGlow Map View 76x50 Tactical HUD 1 Map Filters NONE Filters NONE Steam 1 RUN: 81df4c6b-21cf-4967-bafe-1a8918646bee